[Event "15th Paleochora Open 2022"]
[Site "Paleochora"]
[Date "2022.07.18"]
[Round "3.1"]
[White "Barbot, Pierre"]
[Black "Yilmaz, Mustafa"]
[Result "1/2-1/2"]
[ECO "E60"]
[WhiteElo "2438"]
[BlackElo "2634"]
[Annotator "TA"]
[PlyCount "41"]
[EventDate "2022.07.17"]
[EventType "swiss"]
[EventCountry "GRE"]
[SourceTitle "playchess.com"]
[Source "ChessBase"]
[SourceQuality "1"]
[TimeControl "40/5400+30:900+30"]

{[%evp 9,41,2,20,13,5,11,16,7,15,7,30,-3,29,0,0,0,0,0,0,0,6,2,5,5,4,0,0,-7,-7,-2,24,29,25,11]} 1. d4 {[%emt 0:00:05]} Nf6 {[%emt 0:00:06]} 2. c4 {[%emt 0:00:04]} c5 {[%emt 0:00:37]} 3. e3 {[%emt 0:00:48]} g6 {[%emt 0:04:40]} 4. Nf3 {[%emt 0:01:59]} Bg7 {[%emt 0:00:25]} 5. dxc5 {[%emt 0:00:43]} Na6 {[%emt 0:04:35][%cal Bb8a6,Ba6c5,Bc5e4][%mdl 32]} 6. Be2 {[%emt 0:05:39] E60: King's Indian: Unusual lines and Fianchetto Variation without Nc3.} Nxc5 {[%emt 0:00:40]} 7. O-O {[%emt 0:00:05]} O-O {[%emt 0:02:00]} 8. b4 $1 {[%emt 0:03:26][%mdl 4] The position is equal. is currently scoring better than 8.Nc3.} Nce4 {[%emt 0:05:58]} 9. Bb2 {[%emt 0:01:31]} d5 {[%emt 0:10:25]} 10. Nbd2 {[%emt 0:06:42] [#]} Bg4 $146 {[%emt 0:10:23]} ({Predecessor:} 10... Nxd2 11. Nxd2 b6 12. Rc1 a5 13. b5 Bb7 14. Qa4 Rc8 15. Rfd1 Nd7 16. Bxg7 Kxg7 17. cxd5 Rxc1 18. Rxc1 Bxd5 {½-½ (37) Kraai,J (2484)-Vigorito,D (2330) Denver 2019}) 11. h3 {[%emt 0:22:39]} Nxd2 {[%emt 0:04:25]} 12. Nxd2 {[%emt 0:00:07]} Bxe2 {[%emt 0:01:24]} 13. Qxe2 {[%emt 0:00:04]} Qb6 {[%emt 0:06:37]} 14. Bd4 {[%emt 0:12:45]} Qxb4 {[%emt 0:03:56]} 15. Rfb1 {[%emt 0:01:13][%cal Bf1b1,Bb1b7,Bb7b4,Bb4c4][%mdl 32]} Qd6 {[%emt 0:03:00]} 16. Rxb7 {[%emt 0:00:04]} e5 {[%emt 0:02:27]} 17. Bc3 {[%emt 0:02:20]} Rfc8 {[%emt 0:04:14]} 18. Rc1 {[%emt 0:09:15]} dxc4 {[%emt 0:05:21]} 19. Rb4 {[%emt 0:01:55]} ({Not} 19. Nxc4 $2 Qa6 20. Qb2 (20. Rb4 $2 Nd5 $19) 20... Qxc4 $19) 19... Qa6 {[%emt 0:15:25]} 20. Rxc4 {[%emt 0:08:02]} Re8 {[%emt 0:05:32]} 21. Nb3 {[%emt 0:01:13] A balanced but interesting game.  Weighted Error Value: White=0.05 (flawless) /Black=0.07 (flawless)} 1/2-1/2

[Event "15th Paleochora Open 2022"]
[Site "Paleochora"]
[Date "2022.07.18"]
[Round "3.2"]
[White "Bernadskiy, Vitaliy"]
[Black "Vlachos, Anatole"]
[Result "1/2-1/2"]
[ECO "A07"]
[WhiteElo "2610"]
[BlackElo "2433"]
[Annotator "TA"]
[PlyCount "41"]
[EventDate "2022.07.17"]
[EventType "swiss"]
[EventCountry "GRE"]
[SourceTitle "playchess.com"]
[Source "ChessBase"]
[SourceQuality "1"]
[TimeControl "40/5400+30:900+30"]

{[%evp 9,41,0,10,-16,0,-22,-14,-28,-29,-23,-15,-22,-8,-14,-16,-12,-26,-3,0,0,0,0,0,0,0,0,4,7,5,6,5,0,0,0]} 1. Nf3 {[%emt 0:00:02]} d5 {[%emt 0:00:44]} 2. g3 {[%emt 0:00:12]} Nf6 {[%emt 0:00:10]} 3. Bg2 {[%emt 0:00:04]} e6 {[%emt 0:00:08]} 4. O-O {[%emt 0:01:51]} Be7 {[%emt 0:00:15]} 5. d3 {[%emt 0:05:17]} O-O {[%emt 0:00:09]} 6. Bf4 {[%emt 0:01:38] A07: Réti Opening: New York and Capablanca Systems.} c5 {[%emt 0:09:02]} 7. c3 {[%emt 0:05:27]} Nc6 {[%emt 0:00:25][%cal Bb8c6,Bc6e5,Be5c4][%mdl 32] [#]} 8. a3 $146 {[%emt 0:00:51]} (8. e4 {is more complex.} dxe4 9. dxe4 Nxe4 10. Ne5) ({Predecessor:} 8. Nbd2 Nh5 9. e3 Nxf4 10. exf4 Qc7 11. Re1 Bf6 12. Qc2 b6 13. d4 Bb7 14. Ne5 cxd4 15. cxd4 Bxe5 16. fxe5 {½-½ (41) Vitek,D (1100)-Burdilak,M (1777) Nachod 2012}) 8... Nd7 {[%emt 0:12:31]} 9. b4 {[%emt 0:07:07]} e5 {[%emt 0:00:17]} 10. Bc1 {[%emt 0:00:44]} a6 {[%emt 0:04:11]} 11. bxc5 {[%emt 0:15:44]} Nxc5 {[%emt 0:02:26]} 12. Nxe5 {[%emt 0:02:16]} Nxe5 {[%emt 0:00:05]} 13. d4 {[%emt 0:00:02][%csl LRc5,LRe5] [#]} Nc4 $1 {[%emt 0:02:48] aiming for ...Ne4. The position is equal.} 14. dxc5 {[%emt 0:00:07]} Be6 {[%emt 0:00:12]} 15. Nd2 {[%emt 0:01:12]} Nxd2 {[%emt 0:04:32]} 16. Qxd2 {[%emt 0:00:10][%cal Oc3c4]} Bxc5 {[%emt 0:00:53]} 17. a4 {[%emt 0:00:03]} Qa5 {[%emt 0:03:15]} 18. Ba3 {[%emt 0:03:19]} Bxa3 {[%emt 0:00:03]} 19. Rxa3 {[%emt 0:00:05]} Rac8 {[%emt 0:05:22]} 20. Rb1 {[%emt 0:01:42]} Rc4 {[%emt 0:07:58]} 21. Qb2 {[%emt 0:18:41] A balanced but interesting game.  Weighted Error Value: White=0.06 (flawless) /Black=0.04 (flawless)} ({Of course not} 21. Rxb7 d4 22. Qc2 dxc3 $19) 1/2-1/2

[Event "15th Paleochora Open 2022"]
[Site "Paleochora"]
[Date "2022.07.18"]
[Round "3.3"]
[White "Bulmaga, Irina"]
[Black "Meshkovs, Nikita"]
[Result "1/2-1/2"]
[ECO "B30"]
[WhiteElo "2394"]
[BlackElo "2535"]
[Annotator "TA"]
[PlyCount "106"]
[EventDate "2022.07.17"]
[EventType "swiss"]
[EventCountry "GRE"]
[SourceTitle "playchess.com"]
[Source "ChessBase"]
[SourceQuality "1"]
[TimeControl "40/5400+30:900+30"]

{[%evp 13,106,25,28,25,37,45,39,32,41,31,36,43,53,30,23,-28,-27,-25,-29,-54,-57,-82,-86,-82,-71,-71,-86,-82,-41,-37,-34,-46,-45,-47,-38,-51,-51,-73,-51,-51,-51,-51,-47,-51,-51,-55,-59,-59,-59,-75,-62,-60,-47,-83,-81,-89,-89,-84,-82,-84,-68,-68,-68,-68,-68,-69,-69,-72,-77,-83,-83,-87,0,-87,-71,-73,-73,-87,-87,-87,-68,-68,-68,-68,-45,-45,-43,-43,-43,-43,-43,-43,-40,-40,-40]} 1. e4 {[%emt 0:00:04][%cal Be2e4,Be4e5][%mdl 32]} c5 {[%emt 0:00:17]} 2. Nf3 {[%emt 0:00:09]} Nc6 {[%emt 0:00:06]} 3. Nc3 {[%emt 0:00:07]} Nf6 {[%emt 0:00:16]} 4. Bb5 {[%emt 0:00:25]} Nd4 {[%emt 0:00:16]} 5. e5 {[%emt 0:00:38]} Nxb5 {[%emt 0:00:03]} 6. Nxb5 {[%emt 0:00:16]} Nd5 {[%emt 0:00:05]} 7. Ng5 {[%emt 0:00:29]} f6 {[%emt 0:00:05]} 8. Qf3 {[%emt 0:02:11] B30: Sicilian: 2...Nc6 3 Bb5, lines without ...g6.} Nc7 {[%emt 0:30:43] [#]} 9. exf6 $1 {[%emt 0:00:42]} exf6 {[%emt 0:00:02]} 10. Qe4+ {[%emt 0:01:07] White is slightly better.} Ne6 {[%emt 0:00:20]} 11. Nxh7 {[%emt 0:01:24]} d5 {[%emt 0:04:48]} 12. Qg6+ {[%emt 0:00:44]} Kd7 {[%emt 0:00:18] [#] Threatens to win with ...Kc6.} 13. Nxf8+ {[%emt 0:00:53]} Qxf8 {[%emt 0:00:22]} 14. d4 {[%emt 0:17:04] [#]} ({Don't play} 14. Qf5 Kc6 15. a4 (15. c4 dxc4 16. a4 Ng5 $17) 15... a6 $17) (14. Qg3 $142) 14... Qe8 $146 {[%emt 0:05:41][%mdl 2048] Black has some pressure.} ({Predecessor:} 14... Kc6 15. c4 dxc4 16. a4 Nxd4 17. Qe4+ Kb6 18. Nxd4 cxd4 19. a5+ Ka6 20. O-O Qc5 {1-0 (46) Cruz,R (2298)-Madeira,W (2215) Sao Paulo 2004}) 15. Qxe8+ {[%emt 0:04:12]} Rxe8 {[%emt 0:00:02]} 16. O-O {[%emt 0:02:27] And now dxc5 would win.} a6 $1 {[%emt 0:14:54]} 17. Nc3 {[%emt 0:02:33]} Nxd4 {[%emt 0:00:13]} 18. Nxd5 {[%emt 0:10:05]} Nxc2 {[%emt 0:01:00] ...Kc6 is the strong threat.} 19. Rb1 {[%emt 0:09:42]} Kc6 {[%emt 0:00:35] Against Nb6} 20. Ne3 {[%emt 0:00:25]} Nxe3 {[%emt 0:07:22]} (20... Nd4 {with more complications.} 21. b4 Ne2+ 22. Kh1 b5) 21. Bxe3 {[%emt 0:00:06]} Be6 {[%emt 0:00:07]} 22. Rbc1 {[%emt 0:03:57]} b6 {[%emt 0:00:03]} ({But not} 22... Bxa2 23. Rxc5+ Kd6 24. Rd1+ Ke6 25. f4 $11) 23. a3 {[%emt 0:01:09]} Rad8 {[%emt 0:09:12]} 24. Rfd1 {[%emt 0:04:02]} Kb5 {[%emt 0:00:19]} 25. Kf1 {[%emt 0:06:56]} Ka4 {[%emt 0:02:43]} 26. Rxd8 {[%emt 0:02:11]} Rxd8 $15 {[%emt 0:00:02][%mdl 4096] Endgame KRB-KRB} 27. Rc3 {[%emt 0:00:51]} Rd1+ {[%emt 0:02:08]} 28. Ke2 {[%emt 0:00:03]} Rg1 {[%emt 0:01:13]} 29. g3 {[%emt 0:03:53][%cal Ob2b4]} a5 {[%emt 0:00:17] Inhibits b4.} 30. h4 {[%emt 0:08:33]} Bd5 {[%emt 0:05:09]} 31. h5 {[%emt 0:06:59]} Rh1 {[%emt 0:05:23]} 32. g4 $1 {[%emt 0:00:03]} f5 {[%emt 0:00:04]} 33. gxf5 {[%emt 0:05:01][%cal Of5f6]} Rxh5 {[%emt 0:00:02]} 34. Bd2 {[%emt 0:01:01]} Rxf5 {[%emt 0:00:18]} 35. Rg3 {[%emt 0:00:21]} Bc4+ {[%emt 0:00:27]} 36. Ke1 {[%emt 0:00:42]} Re5+ {[%emt 0:00:02]} 37. Kd1 {[%emt 0:01:22]} Bb3+ {[%emt 0:01:28]} 38. Kc1 {[%emt 0:00:03]} Re7 {[%emt 0:00:05]} 39. Rg4+ {[%emt 0:01:59]} Kb5 {[%emt 0:00:03]} 40. Rg3 {[%emt 0:00:00]} a4 {[%emt 0:00:00]} 41. Rd3 {[%emt 0:04:16]} Re2 {[%emt 0:02:57]} 42. Rg3 {[%emt 0:04:41]} Re7 {[%emt 0:00:12]} 43. Rd3 $1 {[%emt 0:00:34]} g6 {[%emt 0:01:28]} 44. Be3 {[%emt 0:00:25]} Kc6 {[%emt 0:02:09]} 45. Kd2 {[%emt 0:00:35]} Bd5 {[%emt 0:00:42]} 46. Bg5 {[%emt 0:00:49]} Re4 {[%emt 0:01:57]} 47. Re3 {[%emt 0:01:25] Black is slightly better.} Rd4+ {[%emt 0:00:01]} 48. Rd3 {[%emt 0:00:00]} Rc4 {[%emt 0:01:03]} 49. Rc3 {[%emt 0:00:04]} Kb5 {[%emt 0:00:14]} 50. Rxc4 {[%emt 0:01:00]} Kxc4 {[%emt 0:00:02]} 51. Bd8 {[%emt 0:02:16]} b5 {[%emt 0:00:01][%cal Bb6b5,Bb5b4][%mdl 32]} 52. Be7 {[%emt 0:01:35]} b4 {[%emt 0:00:58]} 53. Kc1 {[%emt 0:00:48]} Bf3 {[%emt 0:00:55] Weighted Error Value: White=0.06 (flawless) /Black=0.06 (flawless)} 1/2-1/2

[Event "15th Paleochora Open 2022"]
[Site "Paleochora"]
[Date "2022.07.18"]
[Round "3.4"]
[White "Pap, Misa"]
[Black "David, Alberto"]
[Result "1/2-1/2"]
[ECO "B22"]
[WhiteElo "2375"]
[BlackElo "2534"]
[Annotator "TA"]
[PlyCount "44"]
[EventDate "2022.07.17"]
[EventType "swiss"]
[EventCountry "GRE"]
[SourceTitle "playchess.com"]
[Source "ChessBase"]
[SourceQuality "1"]
[TimeControl "40/5400+30:900+30"]

{[%evp 19,44,14,10,8,9,1,9,0,0,0,0,0,0,0,0,0,20,8,12,5,18,3,11,0,-2,0,36]} 1. e4 {[%emt 0:00:12][%cal Be2e4,Be4e5][%mdl 32]} c5 {[%emt 0:00:11]} 2. c3 {[%emt 0:00:06]} Nf6 {[%emt 0:00:15]} 3. e5 {[%emt 0:00:08]} Nd5 {[%emt 0:00:05]} 4. Nf3 {[%emt 0:00:32]} e6 {[%emt 0:00:26]} 5. d4 {[%emt 0:00:07]} cxd4 {[%emt 0:00:06]} 6. cxd4 {[%emt 0:00:04]} d6 {[%emt 0:00:17]} 7. Bc4 {[%emt 0:00:19]} Nc6 {[%emt 0:00:16]} 8. Qe2 {[%emt 0:00:33]} Be7 {[%emt 0:05:11]} 9. O-O {[%emt 0:00:25]} O-O {[%emt 0:00:25]} 10. Rd1 $1 {[%emt 0:01:00][%mdl 4] is recently more successful than 10.Nc3.} Qc7 {[%emt 0:01:40] The position is equal.} 11. Bd2 {[%emt 0:03:22] B22: Sicilian: 2 c3.} a6 {[%emt 0:01:37]} 12. Nc3 {[%emt 0:05:31]} Nxc3 {[%emt 0:00:43]} 13. Bxc3 {[%emt 0:00:50]} dxe5 {[%emt 0:00:10]} 14. dxe5 {[%emt 0:00:43]} b5 {[%emt 0:00:15]} 15. Bd3 {[%emt 0:00:16]} Bb7 {[%emt 0:00:06]} 16. Rac1 {[%emt 0:04:11]} Rfd8 {[%emt 0:11:50] [#]} 17. a3 $146 {[%emt 0:08:43]} ({Predecessor:} 17. h4 Qb6 18. a3 h6 19. h5 b4 20. axb4 Nxb4 21. Bd4 Qa5 22. Bc3 {1-0 (39) Karpatchev,A (2487)-Colandrea,S (1874) St Chely d'Aubrac 2005}) 17... Rd7 {[%emt 0:06:44] [#]} 18. Ba5 $1 {[%emt 0:03:07]} Qc8 {[%emt 0:02:45]} 19. Bb6 {[%emt 0:04:30][%cal Of3d4]} Qe8 {[%emt 0:01:15]} 20. h4 {[%emt 0:21:11]} Rc8 {[%emt 0:01:56]} 21. Qe4 {[%emt 0:02:10]} g6 {[%emt 0:00:17][%cal Oc6b4] [#] ...Nb4! is the strong threat.} 22. Qe3 {[%emt 0:01:11][%cal Oh4h5]} Nb8 {[%emt 0:06:45] An interesting draw.  Weighted Error Value: White=0.04 (flawless) /Black=0.01 (flawless)} 1/2-1/2

[Event "15th Paleochora Open 2022"]
[Site "Paleochora"]
[Date "2022.07.18"]
[Round "3.5"]
[White "Stremavicius, Titas"]
[Black "Khayrullin, Denis"]
[Result "1-0"]
[ECO "A16"]
[WhiteElo "2532"]
[BlackElo "2361"]
[Annotator "TA"]
[PlyCount "161"]
[EventDate "2022.07.17"]
[EventType "swiss"]
[EventCountry "GRE"]
[SourceTitle "playchess.com"]
[Source "ChessBase"]
[SourceQuality "1"]
[TimeControl "40/5400+30:900+30"]

{[%evp 9,161,24,16,14,32,27,45,36,46,49,67,56,56,43,55,41,46,41,33,35,43,41,41,41,46,40,54,50,56,49,54,37,84,73,119,102,98,119,119,119,119,119,119,119,119,119,119,119,119,119,119,119,119,119,119,37,119,65,94,65,119,119,119,119,119,119,119,119,119,119,119,119,119,119,119,119,119,119,119,119,119,119,119,119,119,119,119,119,119,119,119,119,119,119,119,119,119,119,119,119,119,119,119,119,119,119,119,119,119,119,119,119,119,0,119,119,119,119,119,0,0,0,0,0,106,-36,4,8,12,0,0,0,8,8,8,8,346,341,657,693,564,430,718,684,670,673,717,703,2554,1929,29959,7789,29981,29982]} 1. c4 {[%emt 0:00:30]} Nf6 {[%emt 0:00:07]} 2. Nc3 {[%emt 0:00:30]} d5 {[%emt 0:00:06]} 3. cxd5 {[%emt 0:00:30]} Nxd5 {[%emt 0:00:30]} 4. Nf3 {[%emt 0:00:07]} g6 {[%emt 0:00:07]} 5. h4 {[%emt 0:00:30]} Bg7 {[%emt 0:00:06]} 6. e4 {[%emt 0:00:30] A16: English Opening: 1...Nf6 with ...d5.} Nxc3 {[%emt 0:00:16]} 7. dxc3 {[%emt 0:00:30]} Qxd1+ {[%emt 0:00:31]} 8. Kxd1 {[%emt 0:00:06] White is slightly better.} Bg4 {[%emt 0:00:16]} 9. Kc2 {[%emt 0:00:06]} c6 {[%emt 0:00:30] [#]} 10. Bc4 $146 {[%emt 0:00:06]} ({Predecessor:} 10. Be3 Nd7 11. Nd2 O-O-O 12. f3 Be6 13. h5 f5 14. a4 Kb8 15. Re1 Be5 16. f4 {1-0 (65) Abbasov,F (2527)-Atakishiyev,E (2240) Nakhchivan 2022}) 10... Bxf3 {[%emt 0:00:06]} 11. gxf3 {[%emt 0:00:30]} h5 {[%emt 0:00:06]} 12. Be3 {[%emt 0:00:07]} Nd7 {[%emt 0:00:06]} 13. Rad1 {[%emt 0:00:06][%cal Oc4f7]} Ne5 {[%emt 0:00:08]} 14. Be2 {[%emt 0:00:06]} Bh6 {[%emt 0:00:06]} 15. f4 {[%emt 0:00:07]} Nd7 {[%emt 0:00:06]} 16. Bc4 $36 {[%emt 0:00:09][%cal Oc4f7][%mdl 2048] aiming for Bxf7+! White is more active.} e6 {[%emt 0:00:06]} 17. a4 {[%emt 0:00:30][%cal Ba2a4,Ba4a5][%mdl 32]} Ke7 {[%emt 0:00:07]} 18. a5 {[%emt 0:00:06]} a6 {[%emt 0:00:30]} 19. e5 {[%emt 0:00:06]} Rhd8 {[%emt 0:00:10]} 20. Rd3 {[%emt 0:00:07]} Nf8 {[%emt 0:00:06]} (20... Ke8 $14) 21. f5 $16 {[%emt 0:00:28][%cal Bf4f5,Bf5f6][%mdl 32]} Bxe3 {[%emt 0:00:07]} (21... Rxd3 $142 22. f6+ (22. Bxd3 Bxe3 23. f6+ Kd8 $17) 22... Kd7 23. Kxd3 Bxe3 24. Kxe3 Kd8) 22. f6+ {[%emt 0:00:30]} Ke8 {[%emt 0:00:06]} 23. Rxe3 {[%emt 0:00:06]} (23. fxe3 Nd7 24. Rd4 Nxe5 $17) 23... Rd7 {[%emt 0:00:06]} 24. f4 {[%emt 0:00:30]} Rad8 {[%emt 0:00:07]} 25. Rd3 {[%emt 0:00:32] Against Rd2+} Rxd3 {[%emt 0:00:06]} 26. Bxd3 {[%emt 0:00:30][%mdl 4096] Endgame KRB-KRN} Kd7 {[%emt 0:00:07]} 27. Rd1 {[%emt 0:00:30]} Kc7 {[%emt 0:00:06]} 28. b4 {[%emt 0:00:30]} Nd7 {[%emt 0:00:07]} 29. Be2 {[%emt 0:00:06]} Rb8 {[%emt 0:00:39]} 30. Ra1 {[%emt 0:00:06]} Rd8 {[%emt 0:00:07]} 31. Bd3 {[%emt 0:00:06]} Nb8 {[%emt 0:00:30]} 32. Re1 {[%emt 0:00:07]} ({White should try} 32. Rb1 $16) 32... Nd7 {[%emt 0:00:06]} (32... c5 $1 $14) 33. Re4 {[%emt 0:00:19]} (33. Rd1 $16) 33... Rb8 {[%emt 0:00:06]} 34. Rd4 {[%emt 0:00:07]} Ra8 {[%emt 0:00:30]} (34... c5 $14 35. Re4 b6) 35. Be4 {[%emt 0:00:06]} Rb8 {[%emt 0:00:06]} 36. Kd2 {[%emt 0:00:06]} Rc8 {[%emt 0:00:07]} 37. Rc4 {[%emt 0:00:06]} Rd8 {[%emt 0:00:30] Strongly threatening ...Nxe5+.} 38. Ke3 {[%emt 0:00:07]} Rc8 {[%emt 0:00:12]} 39. Bf3 {[%emt 0:00:06]} ({Resist} 39. Rd4 Rd8) 39... Rd8 {[%emt 0:00:30]} 40. Rd4 {[%emt 0:00:06]} Rc8 {[%emt 0:00:10]} 41. Rd2 {[%emt 0:15:06]} Rb8 {[%emt 0:15:06]} 42. Ra2 {[%emt 0:00:30]} Rd8 {[%emt 0:00:12]} 43. Be4 {[%emt 0:00:07]} Rb8 {[%emt 0:00:30]} 44. Bd3 {[%emt 0:00:06]} Ra8 {[%emt 0:00:06]} 45. c4 {[%emt 0:00:30]} Rd8 {[%emt 0:00:07]} 46. Be4 {[%emt 0:00:06]} Rb8 {[%emt 0:00:30]} 47. Rd2 {[%emt 0:00:06]} Ra8 {[%emt 0:00:06]} 48. Kd4 {[%emt 0:00:06]} Rd8 {[%emt 0:00:07]} 49. Kc3 $1 {[%emt 0:00:30]} Ra8 {[%emt 0:00:06]} 50. Bf3 {[%emt 0:00:09]} Ra7 {[%emt 0:00:10]} 51. Ra2 {[%emt 0:00:07] 0x0.0019889189badp-1022s more active pieces. The black rooks are badly placed.} Ra8 {[%emt 0:00:30]} 52. Ra1 {[%emt 0:00:06]} Rd8 {[%emt 0:00:30]} 53. Rb1 {[%emt 0:00:06]} Ra8 {[%emt 0:00:25]} 54. Rd1 {[%emt 0:00:07]} Ra7 {[%emt 0:00:30]} 55. Kd4 {[%emt 0:00:06]} Ra8 {[%emt 0:00:30]} 56. Rc1 {[%emt 0:00:07]} Ra7 {[%emt 0:00:06]} 57. Ke3 {[%emt 0:00:07]} Ra8 {[%emt 0:00:58]} 58. Rd1 {[%emt 0:00:30]} Ra7 {[%emt 0:00:30]} 59. Ra1 {[%emt 0:00:30]} Ra8 {[%emt 0:00:30]} 60. Rc1 {[%emt 0:00:30]} Rd8 {[%emt 0:00:30]} 61. Ra1 {[%emt 0:00:30]} Ra8 $1 {[%emt 0:00:30]} 62. Ke2 {[%emt 0:00:30]} Rd8 {[%emt 0:00:30]} 63. Ra2 {[%emt 0:01:00]} Ra8 {[%emt 0:00:30]} 64. b5 {[%emt 0:00:30]} (64. Rd2 $16) 64... axb5 $11 {[%emt 0:00:30]} 65. cxb5 {[%emt 0:00:30]} cxb5 {[%emt 0:00:30]} 66. Ke3 {[%emt 0:00:30]} Nb8 {[%emt 0:00:30]} (66... b4 $11 {keeps the balance.}) 67. Be2 {[%emt 0:00:30]} ({Better is} 67. f5 $1 $16 {[%cal Rf5g6]}) 67... Nc6 {[%emt 0:00:30] Hoping for ...b4.} (67... b4 $5 {[%cal Rb8c6]}) 68. Bxb5 {[%emt 0:00:30]} Nxa5 {[%emt 0:00:30]} 69. f5 {[%emt 0:00:30]} gxf5 {[%emt 0:00:30][%cal Oa8g8]} ({Don't do} 69... exf5 70. e6 fxe6 71. Rxa5 $1 $16) 70. Be2 {[%emt 0:01:02]} b5 {[%emt 0:00:30]} 71. Bxb5 {[%emt 0:00:30]} Rd8 {[%emt 0:00:30]} 72. Kf4 {[%emt 0:00:30]} Rd4+ $2 {[%emt 0:00:30][%mdl 8192] [#] This costs Black the game.} (72... Kb6 $11 {and Black stays safe.} 73. Be2 Rd4+ 74. Kg5 Nc6) 73. Kg5 $1 $18 {[%emt 0:00:30]} Rg4+ $2 {[%emt 0:00:30]} (73... Kb6 74. Be8 Nc4) 74. Kxh5 {[%emt 0:00:30]} Rg8 {[%emt 0:00:30]} 75. Kh6 {[%emt 0:00:30]} Nb7 {[%emt 0:01:03]} (75... Kb6 $142) 76. Kh7 {[%emt 0:00:30]} Rg4 {[%emt 0:00:30]} 77. Be8 {[%emt 0:00:30]} ({Less strong is} 77. h5 f4 78. Rc2+ Kb6 $18) 77... Rxh4+ {[%emt 0:00:30]} 78. Kg7 {[%emt 0:00:30] Threatens to win with Rc2+.} Re4 {[%emt 0:00:30]} 79. Kxf7 {[%emt 0:00:30]} Rxe5 {[%emt 0:00:30]} 80. Ke7 {[%emt 0:00:07] Intending f7 and mate.} Nd8 {[%emt 0:00:30]} 81. Rc2+ {[%emt 0:00:06][%mdl 64] Deflection.  Weighted Error Value: White=0.04 (flawless) /Black=0.06 (flawless)} 1-0

[Event "15th Paleochora Open 2022"]
[Site "Paleochora"]
[Date "2022.07.18"]
[Round "3.6"]
[White "Yilmazyerli, Mert"]
[Black "Naoum, Spyridon"]
[Result "1-0"]
[ECO "A04"]
[WhiteElo "2520"]
[BlackElo "2346"]
[Annotator "TA"]
[PlyCount "69"]
[EventDate "2022.07.17"]
[EventType "swiss"]
[EventCountry "GRE"]
[SourceTitle "playchess.com"]
[Source "ChessBase"]
[SourceQuality "1"]
[TimeControl "40/5400+30:900+30"]

{[%evp 9,69,35,58,62,51,22,38,37,27,27,36,0,46,10,64,54,121,36,77,95,96,62,76,76,71,79,71,72,116,103,95,81,85,85,168,158,152,160,193,124,300,304,302,295,383,374,378,387,385,386,526,440,572,576,567,564,693,498,488,429,449,421]} 1. Nf3 {[%emt 0:00:43]} e6 {[%emt 0:00:24]} 2. g3 {[%emt 0:02:04]} f5 {[%emt 0:00:17]} 3. Bg2 {[%emt 0:00:11]} Nf6 {[%emt 0:00:04]} 4. O-O {[%emt 0:00:09]} d5 {[%emt 0:00:04]} 5. d3 {[%emt 0:02:00]} Bd6 {[%emt 0:01:13]} 6. c4 {[%emt 0:04:20] A04: Unusual lines after 1 Nf3 and King's Indian Attack.} dxc4 {[%emt 0:03:10]} 7. dxc4 {[%emt 0:00:20]} Nc6 {[%emt 0:00:04]} 8. Nc3 {[%emt 0:00:41][%cal Oe2e4] White is slightly better.} O-O {[%emt 0:00:06]} 9. Qb3 {[%emt 0:05:50]} a6 {[%emt 0:19:10] [#]} 10. Bf4 $146 {[%emt 0:03:44]} ({Predecessor:} 10. a3 Kh8 11. Bg5 h6 12. Bxf6 Qxf6 13. Rad1 e5 14. Nd5 Qf7 15. Nb6 Rb8 16. Nxc8 Rfxc8 {0-1 (51) Nesterov,Y-Glek,I (2460) Minsk 1986}) 10... Qe7 {[%emt 0:14:16]} (10... Na5 $11 11. Qc2 (11. Qa4 Bd7 $15) 11... Nxc4) 11. Rad1 {[%emt 0:01:53]} Bc5 {[%emt 0:25:45]} (11... Bxf4 $11 12. gxf4 Rb8) 12. e3 $14 {[%emt 0:10:49]} e5 {[%emt 0:09:16]} (12... Rb8 $14) 13. Bg5 {[%emt 0:01:27]} ({White should try} 13. Nd5 $16 Nxd5 14. cxd5 exf4 15. dxc6+ Be6 16. Qc2 fxg3 17. cxb7 gxf2+ 18. Rxf2) 13... Qf7 {[%emt 0:03:15]} 14. Bxf6 {[%emt 0:04:19]} gxf6 {[%emt 0:02:32]} 15. Nd5 {[%emt 0:01:27]} e4 {[%emt 0:10:41]} 16. Nh4 {[%emt 0:12:25]} Ne5 {[%emt 0:00:01]} 17. Bh3 {[%emt 0:00:45]} Kh8 {[%emt 0:05:12]} 18. Qc3 {[%emt 0:03:56]} (18. Bxf5 $2 Bxf5 19. f4 (19. Nxf5 $2 Nf3+ 20. Kg2 Qh5 $19) 19... Nf3+ 20. Rxf3 Bg4 $19) (18. Nxf5 Nf3+ 19. Kg2 (19. Kh1 $2 Bxf5 20. Bxf5 Qh5 $19) 19... Bd6 $11) 18... c6 {[%emt 0:02:45]} 19. Nf4 {[%emt 0:00:06]} Ng6 {[%emt 0:00:16]} (19... Qxc4 $2 20. Qxc4 Nxc4 21. Rc1 (21. Bxf5 Nxb2 22. Rd2 Na4 $14) 21... Nxe3 22. Rfe1 $16 (22. Rxc5 Nxf1 23. Kxf1 Re8 $16) (22. fxe3 Bxe3+ 23. Kg2 Bxc1 $11)) 20. Nfg2 {[%emt 0:04:55] White is much more active.} (20. Bxf5 $2 Nxh4 21. Bxe4 Ng6 $17) 20... Ne7 {[%emt 0:01:27]} 21. f3 {[%emt 0:03:43]} f4 {[%emt 0:00:24]} (21... Qe6 $16) 22. Nxf4 $18 {[%emt 0:02:44]} ({Don't play} 22. Bxc8 $6 fxe3 23. Nxe3 Raxc8 $16) 22... Bxh3 {[%emt 0:00:16]} 23. Nxh3 {[%emt 0:00:04] Pair of Knights!} Qe6 {[%emt 0:00:48]} 24. Kg2 {[%emt 0:05:33]} (24. Nf4 $18 Qe5 25. Kf2 exf3 26. Qxe5 (26. Nxf3 Qxc3 27. bxc3 Rfe8 $16) 26... fxe5 27. Ne6) 24... Qe5 {[%emt 0:00:02] [#] This costs Black the game.} (24... Nf5 $16 25. Nxf5 Qxf5 26. fxe4 Qxe4+ 27. Rf3 Rae8) 25. Qxe5 {[%emt 0:01:25]} fxe5 {[%emt 0:00:01]} 26. fxe4 {[%emt 0:00:18]} Bxe3 {[%emt 0:00:05]} 27. Rd7 {[%emt 0:00:55]} Rxf1 {[%emt 0:01:24]} 28. Kxf1 {[%emt 0:00:12]} Bc5 {[%emt 0:00:07]} 29. Rxb7 {[%emt 0:00:28] [#] b4 is the strong threat.} a5 {[%emt 0:00:06] Against b4} 30. Ke2 {[%emt 0:00:38] White is clearly winning.} Rd8 {[%emt 0:00:35]} 31. Nf3 {[%emt 0:02:22]} Kg8 {[%emt 0:00:18]} 32. Nhg5 {[%emt 0:01:45] Strongly threatening Ne6.} Bd6 {[%emt 0:00:45]} 33. Ne6 {[%emt 0:04:10]} Rb8 {[%emt 0:00:08]} 34. Rxb8+ {[%emt 0:00:22]} Bxb8 {[%emt 0:00:26]} 35. Nc5 {[%emt 0:00:06] Weighted Error Value: White=0.21 (precise) /Black=0.37} 1-0